Cogmind - Beta 14 @@@ ROGUE MODE // 2024.12.08 @ 20:25:33 Player: jimmyl Result: Destroyed by P-70 Sage with Tesla Rifle Performance ------------- Evolutions (5) 2500 Regions Visited (21) 4200 Robots Destroyed (210) 1050 Value Destroyed (9149) 9149 Prototype IDs (24) 480 Alien Tech Used (0) 0 Bonus (7841) 7841 TOTAL SCORE: 25220 Bonus ------- High Alert Combat Kills 1827 Follower Combat Kills 2682 Entered Garrisons 800 Used RIF Installer 3000 Met Data Miner 300 Met R17 at Cetus 500 Friendly Fire -1268 Cogmind --------- Core Integrity 0/1000 Matter 0/300 Energy 550/550 System Corruption 36% Temperature Cool (0) Movement Core (2000) Ox39 Location -5/Factory Parts ------- > --- POWER (2) -------- Micro Fission Core > --- PROPULSION (4) --- (None) > --- UTILITY (9) ------ Advanced Heat Sink Improved Cooling System Coolant Injector Huge Storage Unit Improved Energy Well Core Analyzer Centrium Medium Armor Plating Relay Coupler [NC] (1) > --- WEAPON (2) ------- Railgun Linear Accelerator > --- INVENTORY (25) --- Neutrino Core Advanced Energy Well (500) Improved Sensor Array Improved Transmission Jammer Relay Coupler [Sentry] (19) Relay Coupler [Demolisher] (17) Relay Coupler [Hunter] (15) Force Rifle Force Rifle Coil Gun Bore Cannon Linear Accelerator Remote Datajack Plasma Cutter Lance Peak State ------------ > --- POWER ------------ Quantum Reactor > --- PROPULSION ------- Centrium Heavy Treads Centrium Heavy Treads > --- UTILITY ---------- Advanced Heat Sink Improved Cooling System Huge Storage Unit Advanced Visual Processing Unit Improved Weapon Cycler Centrium Medium Armor Plating Graphene Brace Relay Coupler [Grunt] Long-range Tractor Beam > --- WEAPON ----------- Advanced Variable Charge Gun Advanced KE Penetrator > --- INVENTORY -------- Neutrino Core Quantum Reactor Centrium Heavy Treads Coolant Injector Advanced Energy Well Improved Sensor Array Improved Transmission Jammer Centrium Medium Armor Plating Centrium Medium Armor Plating Relay Coupler [NC] Relay Coupler [Sentry] Relay Coupler [Demolisher] Relay Coupler [Hunter] Railgun Advanced KE Penetrator Advanced KE Penetrator Bore Cannon Hypervelocity Mass Driver Linear Accelerator Linear Accelerator Plasma Cutter Lance [Rating: 119] Favorites ----------- Power Enhanced Nuclear Core Engine Improved Ion Engine Power Core Enhanced Nuclear Core Reactor Quantum Reactor Propulsion Wheel Treads Light Treads Leg Enhanced Flexi-carbon Leg Wheel Wheel Hover Unit Backup Propulsion III Utility Huge Storage Unit Device Improved Cooling System Storage Huge Storage Unit Processor Core Analyzer Hackware Relay Coupler [Grunt] Protection Insulated Plating Weapon Gauss Rifle Energy Gun High-powered Shock Rifle Energy Cannon Plasma Cannon Ballistic Gun Gauss Rifle Ballistic Cannon Hypervelocity Mass Driver Launcher Heavy Rocket Launcher Special Weapon Remote Datajack Piercing Weapon Lance Special Melee Weapon Advanced Datajack Build | -11 -10 -10 -10 -9 -8 -8 -8 -8 -7 -7 -7 -7 -6 -6 -6 -6 -6 -6 -5 -5 -5 ------- Run | Yrd Mat Min Exi Min Mat Gar Mat Gar Fac Low Low Dat Pro Fac Gar Fac Ext Cet Fac Gar Fac Slots Evolved 10 | . . . . . 4 . . . 2 . . . . 2 . . . . 2 . . Power 1 | . . . . . 1 . . . . . . . . . . . . . . . . Propulsion 2 | . . . . . 1 . . . . . . . . . . . . . 1 . . Utility 7 | . . . . . 2 . . . 2 . . . . 2 . . . . 1 . . Weapon . | . . . . . . . . . . . . . . . . . . . . . . Parts Attached 227 | . 10 . . 1 21 24 9 13 11 11 . 1 5 2 40 23 10 5 2 24 15 Power 26 | . . . . . 2 5 2 3 . . . 1 1 . 4 2 2 2 . 1 1 Engine 10 | . . . . . 1 3 . 2 . . . . . . 1 1 2 . . . . Core 14 | . . . . . 1 2 2 1 . . . 1 1 . 3 1 . 1 . . 1 Reactor 2 | . . . . . . . . . . . . . . . . . . 1 . 1 . Propulsion 40 | . 3 . . . 3 5 . 1 3 4 . . . 1 6 9 1 1 1 2 . Treads 14 | . 2 . . . 1 2 . 1 . . . . . . . 4 . 1 1 2 . Leg 8 | . . . . . . . . . . 1 . . . 1 6 . . . . . . Wheel 15 | . 1 . . . 2 3 . . 3 . . . . . . 5 1 . . . . Hover 3 | . . . . . . . . . . 3 . . . . . . . . . . . Flight . | . . . . . . . . . . . . . . . . . . . . . . Utility 68 | . 3 . . . 5 7 4 1 3 5 . . . . 16 4 2 . 1 8 9 Device 30 | . 1 . . . 3 3 2 . . 2 . . . . 5 2 2 . . 6 4 Storage 4 | . 2 . . . . . . . . . . . . . 1 . . . . . 1 Processor 5 | . . . . . . . . 1 1 . . . . . . 2 . . . . 1 Hackware 14 | . . . . . . 1 . . 2 2 . . . . 8 . . . . . 1 Protection 15 | . . . . . 2 3 2 . . 1 . . . . 2 . . . 1 2 2 Artifact . | . . . . . . . . . . . . . . . . . . . . . . Weapon 93 | . 4 . . 1 11 7 3 8 5 2 . . 4 1 14 8 5 2 . 13 5 Energy Gun 20 | . 2 . . . 2 3 3 5 . . . . . . 3 . 1 . . 1 . Energy Cannon 14 | . . . . . 1 . . 1 3 1 . . 3 . 5 . . . . . . Ballistic Gun 17 | . 2 . . 1 7 2 . . . . . . . . . . . . . 5 . Ballistic Cannon 20 | . . . . . . . . . . . . . 1 . 1 5 3 2 . 4 4 Launcher 9 | . . . . . 1 1 . . . . . . . . 2 1 1 . . 3 . Special Weapon 7 | . . . . . . . . . 2 1 . . . . 2 1 . . . . 1 Impact Weapon . | . . . . . . . . . . . . . . . . . . . . . . Slashing Weapon . | . . . . . . . . . . . . . . . . . . . . . . Piercing Weapon 2 | . . . . . . . . . . . . . . 1 1 . . . . . . Special Melee Weapon 4 | . . . . . . 1 . 2 . . . . . . . 1 . . . . . Unidentified Prototypes 12 | . . . . . 3 . . . . . . . . . 4 . . 1 1 2 1 Corrupted Parts 1 | . . . . . . . . . . . . . . . . 1 . . . . . System Corruption 1 | . . . . . . . . . . . . . . . . 1 . . . . . Parts Lost 85 | . 1 . . . 2 13 2 6 5 6 . . 5 . 7 13 2 1 . 14 8 Power 19 | . . . . . 1 3 . 3 1 1 . . . . 2 3 1 1 . 1 2 Propulsion 23 | . . . . . 1 5 . 2 3 2 . . 1 . . 5 . . . 2 2 Utility 26 | . . . . . . 4 1 1 1 2 . . 2 . 4 2 . . . 7 2 Weapon 17 | . 1 . . . . 1 1 . . 1 . . 2 . 1 3 1 . . 4 2 Highest Loss Streak 10 | . 1 . . . 1 5 1 3 2 5 . . 5 . 2 5 1 1 . 10 2 To Critical Strikes . | . . . . . . . . . . . . . . . . . . . . . . Average Slot Usage (%) 84 | . 90 100 100 100 88 85 97 89 81 84 92 76 67 47 92 85 82 84 81 71 68 Engine 5 | . 14 14 14 14 8 7 . 7 11 8 7 3 . . 1 4 5 5 . . . Core 4 | . . . . . . 1 18 7 . . . 3 12 13 10 4 . 3 . . 1 Treads 5 | . 11 14 14 14 9 9 9 9 3 . . . . . . 2 . 5 11 10 5 Leg 2 | . 5 . . . . . . . . . . . . 5 19 3 . . . . . Wheel 6 | . 11 14 14 14 17 13 18 10 12 1 . . . . . 8 9 1 . . . Hover 3 | . . . . . . . . . . 16 23 23 17 1 . . . . . . . Device 13 | . 5 14 14 14 17 17 18 18 13 4 7 7 2 . 13 11 13 26 23 19 23 Storage 8 | . 14 14 14 14 9 9 9 9 7 7 7 7 7 6 6 6 6 6 5 5 8 Processor 6 | . . . . . . . . 3 7 15 15 15 15 13 11 8 13 13 11 7 2 Hackware 6 | . . . . . . . . . 8 9 7 7 7 6 14 22 19 6 5 3 2 Protection 3 | . . . . . 8 8 6 5 . 2 7 7 2 . 1 . . . 4 5 6 Energy Gun 4 | . 16 . . . . 1 17 16 9 5 7 . . . . 1 2 . . . . Energy Cannon 1 | . . . . . . . . . 4 8 7 . . . 4 . . . . . . Ballistic Gun 6 | . 11 28 28 28 16 16 . . . . . . . . . . . . . 3 5 Ballistic Cannon 1 | . . . . . . . . . . . . . . . . 7 9 13 11 4 3 Peak Build Rating 119 | 6 7 8 8 12 33 41 42 43 46 46 46 44 52 40 85 77 68 88 113 119 101 Average Rating 48 | 6 6 7 8 9 27 30 40 40 42 42 46 40 37 34 71 61 61 83 112 101 85 On Entrance 43 | 6 6 7 8 8 12 32 40 41 42 44 46 46 41 35 39 77 58 68 88 113 90 Naked Turns . | . . . . . . . . . . . . . . . . . . . . . . Heaviest Build 146 | 11 87 87 87 89 106 103 107 114 110 106 103 100 100 99 122 115 115 126 133 133 146 Greatest Support 160 | 20 20 10 10 10 20 26 20 20 36 26 24 24 24 20 76 70 44 80 160 160 103 Greatest Overweight (x) 26 | . 8 8 8 8 10 9 5 11 10 12 4 4 5 5 4 26 3 2 . 1 1 Average Overweight (x) 4 | . 6 8 8 8 5 4 5 8 5 5 4 3 4 4 1 2 2 1 . . 1 Largest Inventory Capacity 25 | 8 25 25 25 25 25 25 25 25 25 25 25 25 25 25 25 25 25 25 25 25 25 Average Capacity 24 | 8 21 25 25 25 25 25 25 25 25 25 25 25 25 25 25 25 25 25 25 25 25 Most Carried 25 | 6 8 9 10 18 25 25 25 25 24 22 21 22 21 19 25 25 23 25 23 25 18 Average Carried 19 | 6 7 8 9 13 20 21 24 24 22 20 20 21 19 18 20 20 20 24 22 22 15 Final Capacity 25 | 8 25 25 25 25 25 25 25 25 25 25 25 25 25 25 25 25 25 25 25 25 25 Final Carried 25 | 6 8 9 10 17 25 25 25 24 22 20 21 21 18 18 25 18 23 25 23 15 15 Class Distribution -------------------- 46% | Bothacker-Mutant 24% | Scavenger-Mutant 23% | Mutant 4% | Botlord-Mutant Dominant Class ---------------- Mutant | -10/Materials Mutant | -10/Mines Mutant | -10/Exiles Mutant | -9/Mines Mutant | -8/Materials Mutant | -8/Garrison Bothacker-Mutant | -8/Materials Bothacker-Mutant | -8/Garrison Bothacker-Mutant | -7/Factory Bothacker-Mutant | -7/Lower Caves Bothacker-Mutant | -7/Lower Caves Bothacker-Mutant | -7/Data Miner Bothacker-Mutant | -6/Proximity Caves Bothacker-Mutant | -6/Factory Bothacker-Mutant | -6/Garrison Scavenger-Mutant | -6/Factory Scavenger-Mutant | -6/Extension Scavenger-Mutant | -6/Cetus Scavenger-Mutant | -5/Factory Scavenger-Mutant | -5/Garrison Scavenger-Mutant | -5/Factory Resources | -11 -10 -10 -10 -9 -8 -8 -8 -8 -7 -7 -7 -7 -6 -6 -6 -6 -6 -6 -5 -5 -5 ----------- Run | Yrd Mat Min Exi Min Mat Gar Mat Gar Fac Low Low Dat Pro Fac Gar Fac Ext Cet Fac Gar Fac Matter Collected 7351 | 200 69 34 . 26 489 910 85 185 130 175 59 . 167 . 696 857 949 364 46 1172 738 Remotely 1156 | . . . . 26 489 171 . . . . . . . . . . . . . 470 . Salvage Created 9159 | . 225 . . 51 560 896 511 1007 511 223 25 . 111 . 993 775 953 300 78 876 1064 Parts 469 | . 27 . . 10 30 54 27 45 23 8 . . 8 . 53 33 50 17 4 20 60 Haulers Intercepted 4 | . . . . . 3 . . . . . . . . . . . 1 . . . . Recyclers Shooed 6 | . . . . . . . . . . . . . . . . 2 1 . . . 3 Parts Field Recycled . | . . . . . . . . . . . . . . . . . . . . . . Retrieved Matter . | . . . . . . . . . . . . . . . . . . . . . . Parts Self-Destructed 16 | . . . . . . . . . . 10 . . 6 . . . . . . . . Prevented 3 | . . . . . . . . . . . . . 3 . . . . . . . . Kills | -11 -10 -10 -10 -9 -8 -8 -8 -8 -7 -7 -7 -7 -6 -6 -6 -6 -6 -6 -5 -5 -5 ------- Run | Yrd Mat Min Exi Min Mat Gar Mat Gar Fac Low Low Dat Pro Fac Gar Fac Ext Cet Fac Gar Fac Combat Hostiles Destroyed 213 | . 9 . . 4 11 25 7 21 4 3 . . 2 . 23 9 13 5 4 57 16 Melee 3 | . . . . . . . . . . . . . . . 3 . . . . . . Guns 107 | . 7 . . 4 9 19 6 17 1 1 . . . . . . . . . 35 8 Cannons 70 | . . . . . . . . 2 2 2 . . 2 . 16 9 13 5 4 7 8 AOE 30 | . 2 . . . 2 6 . . 1 . . . . . 4 . . . . 15 . Classes Destroyed 19 | . 4 . . . 4 2 . 1 . 1 . . . . 3 1 1 . . 1 1 Worker 11 | . 1 . . . 1 . 1 . 3 . . . . . . 3 1 . . . 1 Builder 9 | . . . . . . . . . . . . . . . . 3 3 . . . 3 Tunneler 1 | . . . . . . . . . . . . . . . . . . . . . 1 Hauler 4 | . . . . . 3 . . . . . . . . . . . 1 . . . . Recycler 10 | . . . . . 1 . . . 3 . . . . . . 3 . . . . 3 Watcher 8 | . 3 . . . . . 2 . . . . . . . . 2 . 1 . . . Swarmer 45 | . 8 . . 4 4 9 . 3 . 2 . . . . 4 . . . 4 . 7 Cutter 2 | . . . . . . . . . . . . . . . 2 . . . . . . Saboteur 3 | . . . . . . . . . . . . . . . 3 . . . . . . Grunt 48 | . 1 . . . 5 10 3 9 1 . . . . . 6 4 5 . . 1 3 Brawler 5 | . . . . . . 1 1 . . . . . . . . . 3 . . . . Duelist 7 | . . . . . 1 1 . 1 . . . . . . 1 1 1 . . . 1 Sentry 22 | . . . . . 1 3 3 3 1 1 . . . . 3 1 3 . . 3 . Specialist 2 | . . . . . . . . . . . . . . . 2 . . . . . . Hunter 11 | . . . . . . . . 4 1 . . . 1 . . 2 1 . . 1 1 Programmer 13 | . . . . . . 1 . 1 1 . . . 1 . 3 1 . . . 1 4 Behemoth 2 | . . . . . . . . . . . . . . . . . 1 . . 1 . Cetus Guard 5 | . . . . . . . . . . . . . . . . . . 5 . . . Enhanced Grunt 1 | . . . . . . . . . . . . . . . 1 . . . . . . Decomposer 2 | . . . . . . . . . . . 2 . . . . . . . . . . Samaritan 2 | . . . . . . . . . . 2 . . . . . . . . . . . Assembled 50 | . . . . . . . . . . . . . . . . . . . . 50 . Thug 1 | . . . . . . . . . . . . . . . . . 1 . . . . Best Kill Streak 17 | . 3 . . 4 4 8 3 3 4 2 . . 1 . 5 5 4 3 4 17 4 Combat Bots Only 17 | . 3 . . 4 3 8 2 3 2 2 . . 1 . 5 2 3 3 4 17 3 Max Kills in Single Turn 3 | . 2 . . 1 2 3 2 2 1 1 1 . 1 . 2 2 2 2 2 3 2 Gunslinging 1 | . . . . . . 1 . 1 . . . . . . . . . . . 1 . Exploded 3 | . 2 . . . 2 3 . . 1 . . . . . 2 . . . . 3 . Melee 1 | . . . . . . . . . . . . . . . 1 . . . . . . Uniques/NPCs Destroyed . | . . . . . . . . . . . . . . . . . . . . . . Combat | -11 -10 -10 -10 -9 -8 -8 -8 -8 -7 -7 -7 -7 -6 -6 -6 -6 -6 -6 -5 -5 -5 -------- Run | Yrd Mat Min Exi Min Mat Gar Mat Gar Fac Low Low Dat Pro Fac Gar Fac Ext Cet Fac Gar Fac Hostile Shots Fired 1433 | . 24 . . 6 69 154 34 93 25 40 . . 89 . 109 135 72 20 12 404 147 Missed 432 | . 11 . . 1 17 39 15 27 7 8 . . 29 . 30 47 30 9 4 119 39 Damage Taken 17194 | . 262 4 . 38 745 1713 383 1014 515 546 . . 933 . 1409 1488 680 294 124 4637 2409 Core 2719 | . 65 . . 10 107 211 69 144 128 66 . . 283 . 178 149 202 104 15 575 413 Absorbed by Shields 17 | . . . . . . . . 17 . . . . . . . . . . . . . Ignored by Resistances 276 | . . . . . . 33 4 21 . . . . 102 . 116 . . . . . . Regen/Repaired (Parts) 371 | . . . . . . . . . 11 . . . . . . . . . . . 360 Core Remaining (%) 45 | 100 . . . 70 . . . 3 . . . . 31 . . . . 25 . . . Volleys Fired 783 | . 23 . . 4 38 98 39 64 29 25 4 . 30 . 102 66 58 18 4 107 74 Largest 2 | . 2 . . 2 2 2 2 2 2 2 2 . 2 . 1 2 2 2 2 2 2 Hottest 178 | . 90 . . 40 79 110 130 144 178 178 120 . 129 . 90 130 146 123 123 123 101 Shots Fired 1268 | . 41 . . 8 72 169 76 118 44 39 10 . 35 . 105 113 100 35 8 175 120 Gun 700 | . 41 . . 8 70 165 76 110 20 10 6 . . . 1 . 24 . . 99 70 Cannon 502 | . . . . . . . . 8 14 24 4 . 35 . 81 112 75 35 8 61 45 Launcher 25 | . . . . . 2 4 . . . . . . . . 2 1 1 . . 15 . Special 41 | . . . . . . . . . 10 5 . . . . 21 . . . . . 5 Kinetic 748 | . 2 . . 8 69 158 . . . . . . 22 . 13 112 75 35 8 131 115 Thermal 269 | . 17 . . . 1 . 14 54 14 34 10 . 3 . 69 . 24 . . 29 . Explosive 25 | . . . . . 2 4 . . . . . . . . 2 1 1 . . 15 . Electromagnetic 185 | . 22 . . . . 7 62 64 20 . . . 10 . . . . . . . . Robot Hit Streak 17 | . 5 . . 2 7 15 15 8 8 12 3 . 6 . 17 8 6 5 8 11 5 Robot Miss Streak 8 | . 3 . . 4 4 7 5 4 2 4 4 . 5 . 3 4 8 3 1 4 5 Penetration Max 2 | . . . . . 1 1 . . . . . . . . . . 2 1 . 1 2 Secondary Targets 21 | . . . . . 2 4 3 2 . . . . . . . . . . . 10 . Max Gunslinging Chain 1 | . . . . . 1 1 1 1 . . . . . . . . . . . 1 . Shots Hit Robots 726 | . 22 . . 4 43 91 55 77 29 24 5 . 18 . 72 57 56 22 5 92 54 Core Hits 381 | . 14 1 . 4 30 45 20 30 12 8 2 . 6 . 30 28 32 13 4 70 32 Critical Kills 45 | . . . . . 1 2 . . . . . . . . . 1 15 6 2 12 6 Critical Parts Destroyed 39 | . . . . . 2 . . . . . . . . . . 2 9 5 2 16 3 Critical Strikes 113 | . 1 . . . 3 2 . 2 1 . . . 4 . 3 8 28 14 4 33 10 Burn 2 | . . . . . . . . 2 . . . . . . . . . . . . . Destroy 98 | . . . . . 3 2 . . . . . . . . . 5 28 14 4 33 9 Blast 8 | . . . . . . . . . . . . . 3 . 1 3 . . . . 1 Corrupt 3 | . 1 . . . . . . . 1 . . . 1 . . . . . . . . Impale 2 | . . . . . . . . . . . . . . . 2 . . . . . . Melee Attacks 45 | . . . . . . 3 . 20 . . . . . . 19 3 . . . . . Impact . | . . . . . . . . . . . . . . . . . . . . . . Slashing . | . . . . . . . . . . . . . . . . . . . . . . Piercing 19 | . . . . . . . . . . . . . . . 19 . . . . . . Sneak Attacks 26 | . . . . . . 2 . 20 . . . . . . 4 . . . . . . Combat Hostiles 2 | . . . . . . 2 . . . . . . . . . . . . . . . Follow-up Attacks . | . . . . . . . . . . . . . . . . . . . . . . Damage Inflicted 20372 | . 356 8 . 40 1069 2251 789 1559 776 506 89 . 567 . 2676 2021 1367 501 130 3713 1954 Guns 9145 | . 270 . . 40 904 1751 789 1313 343 93 41 . . . . . 471 . . 1880 1250 Cannons 7695 | . . . . . . . . 188 280 413 48 . 567 . 1456 1972 840 501 130 596 704 Explosions 2722 | . 86 . . . 165 500 . 58 153 . . . . . 467 . 56 . . 1237 . Melee 753 | . . . . . . . . . . . . . . . 753 . . . . . . Ramming 57 | . . 8 . . . . . . . . . . . . . 49 . . . . . Kinetic 10385 | . . . . 40 904 1703 . . . . . . 308 . 175 1972 840 501 130 1858 1954 Thermal 4721 | . 183 . . . . . 278 622 433 506 89 . 76 . 1445 . 471 . . 618 . Explosive 2319 | . . . . . 165 500 . 58 . . . . . . 303 . 56 . . 1237 . Electromagnetic 2137 | . 173 . . . . 48 511 879 343 . . . 183 . . . . . . . . Impact . | . . . . . . . . . . . . . . . . . . . . . . Slashing . | . . . . . . . . . . . . . . . . . . . . . . Piercing 753 | . . . . . . . . . . . . . . . 753 . . . . . . Highest Corruption 36 | . . . . . . 2 2 2 3 3 3 3 3 . 7 10 10 10 . 19 36 Average Corruption 6 | . . . . . . 1 2 2 2 3 3 3 3 . 4 9 10 10 . 9 23 Corruption Purged . | . . . . . . . . . . . . . . . . . . . . . . Corruption Blocked . | . . . . . . . . . . . . . . . . . . . . . . Effects 352 | . . . . . . 17 6 28 2 23 16 5 19 . 43 42 36 16 . 18 81 Message Errors 75 | . . . . . . 2 1 6 1 6 1 1 5 . 11 9 9 3 . 2 18 Matter Fused 88 | . . . . . . 6 1 6 . 5 8 1 3 . 8 10 6 8 . 4 22 Heat Flow Errors 42 | . . . . . . 1 1 4 1 2 1 . 2 . 7 7 3 . . 3 10 Energy Discharges 40 | . . . . . . 3 . 4 . 2 . . 2 . 6 4 8 3 . 1 7 Parts Rejected 6 | . . . . . . . 1 . . 1 . . . . 1 . 1 1 . . 1 Parts Fused 4 | . . . . . . . 1 . . . . . . . 1 . . . . . 2 Data Loss (minor) 45 | . . . . . . 1 . 5 . 4 3 1 5 . 5 7 3 . . 1 10 Data Loss (major) 15 | . . . . . . 3 1 1 . 3 . 2 1 . 1 2 . . . 1 . Misfires 12 | . . . . . . 1 . . . . 2 . . . 3 1 3 . . . 2 Alerts 10 | . . . . . . . . 1 . . 1 . 1 . . 2 1 . . 2 2 Misdirections 3 | . . . . . . . . . . . . . . . . . . . . 1 2 Weapon Failures 12 | . . . . . . . . 1 . . . . . . . . 2 1 . 3 5 Overload Shots . | . . . . . . . . . . . . . . . . . . . . . . Overflow Damage 589 | . 52 . . . . 21 . . 124 60 21 . 13 . 160 22 . . . 78 38 Projectiles 247 | . . . . . . . . . . 60 21 . 13 . 93 22 . . . . 38 Explosions 275 | . 52 . . . . 21 . . 124 . . . . . . . . . . 78 . Melee 67 | . . . . . . . . . . . . . . . 67 . . . . . . Knockbacks 36 | . . . . . . . . . . . . . 5 . 2 17 3 1 . 1 7 Impact . | . . . . . . . . . . . . . . . . . . . . . . Kinetic 33 | . . . . . . . . . . . . . 5 . 2 16 2 1 . 1 6 Secondary 3 | . . . . . . . . . . . . . . . . 1 1 . . . 1 Self-Inflicted Damage 770 | . 162 4 . . . 15 . 53 286 . . . . . 103 24 . . . 123 . Shots 14 | . 3 . . . . 1 . 1 3 . . . . . 2 . . . . 4 . Rammed 2 | . . 1 . . . . . . . . . . . . . 1 . . . . . Targets Rammed 2 | . . 1 . . . . . . . . . . . . . 1 . . . . . Kicked . | . . . . . . . . . . . . . . . . . . . . . . Crushed . | . . . . . . . . . . . . . . . . . . . . . . Highest Temperature 472 | . 168 . . . 8 178 319 254 260 472 221 . 279 . 240 374 307 . . 220 196 Average Temperature 75 | . 48 . . . 8 28 115 64 71 138 124 . 125 . 72 98 41 . . 38 90 Received Heat Transfer 2915 | . 18 . . . 333 522 117 351 24 117 . . . . 273 213 75 9 . 638 225 Effects 2 | . . . . . . . . . . . . . 1 . 1 . . . . . . Energy Bleed 2 | . . . . . . . . . . . . . 1 . 1 . . . . . . Siege Activations . | . . . . . . . . . . . . . . . . . . . . . . Robots Corrupted 2 | . . . . . . . 1 1 . . . . . . . . . . . . . Combat Hostiles 2 | . . . . . . . 1 1 . . . . . . . . . . . . . Parts Fried 11 | . . . . . . 1 2 6 1 . . . 1 . . . . . . . . Impact Corruptions . | . . . . . . . . . . . . . . . . . . . . . . Robots Melted 1 | . . . . . . . . 1 . . . . . . . . . . . . . Combat Hostiles 1 | . . . . . . . . 1 . . . . . . . . . . . . . Parts Melted 11 | . . . . . . . . 8 . 1 1 . . . . . 1 . . . . Heat Transferred 6381 | . 372 . . . . . 481 1313 500 1009 211 . 150 . 550 . 1050 . . 745 . Parts Sabotaged 5 | . . . . . . . . . . . . . . . 2 3 . . . . . Parts Stolen 1 | . . . . . . . . . . 1 . . . . . . . . . . . Parts Stripped . | . . . . . . . . . . . . . . . . . . . . . . Power Chain Reactions 5 | . 2 . . . . . . . 1 . . . . . 2 . . . . . . Alert | -11 -10 -10 -10 -9 -8 -8 -8 -8 -7 -7 -7 -7 -6 -6 -6 -6 -6 -6 -5 -5 -5 ------- Run | Yrd Mat Min Exi Min Mat Gar Mat Gar Fac Low Low Dat Pro Fac Gar Fac Ext Cet Fac Gar Fac Peak Influence 1834 | . 221 27 . 90 378 1255 685 1410 1041 . . . . 25 1834 977 993 676 363 756 550 Initial 962 | . . 27 . . . 130 611 329 739 . . . . . . 962 354 474 266 254 396 Average 553 | . 126 14 . 9 241 700 561 749 863 . . . . 19 850 829 682 555 286 539 432 Maximum Alert Level 5 | . 1 . . . 1 4 2 4 3 . . . . . 5 3 3 2 1 3 2 Low Security (%) 20 | 100 74 100 . 100 32 11 . . . . . . . 100 7 . . . . . . Level 1 15 | . 25 . . . 67 7 . 16 . . . . . . 19 . 11 . 100 26 17 Level 2 30 | . . . . . . 29 100 38 . . . . . . 21 2 28 100 . 62 82 Level 3 23 | . . . . . . 39 . 26 100 . . . . . 11 97 59 . . 10 . Level 4 7 | . . . . . . 11 . 18 . . . . . . 24 . . . . . . Level 5 2 | . . . . . . . . . . . . . . . 15 . . . . . . High Security . | . . . . . . . . . . . . . . . . . . . . . . Max Security . | . . . . . . . . . . . . . . . . . . . . . . Squads Dispatched 21 | . 2 . . 1 2 . 1 . 1 . . . . . . 3 4 . . . 7 Investigation 4 | . . . . 1 1 . 1 . . . . . . . . . . . . . 1 Extermination 4 | . . . . . . . . . 1 . . . . . . 1 . . . . 2 Reinforcement 11 | . 2 . . . 1 . . . . . . . . . . . 4 . . . 4 Assault 2 | . . . . . . . . . . . . . . . . 2 . . . . . Garrison . | . . . . . . . . . . . . . . . . . . . . . . Intercept . | . . . . . . . . . . . . . . . . . . . . . . Searches Triggered . | . . . . . . . . . . . . . . . . . . . . . . Data Miner Redirects 3 | . . . . . . . . . . . . . . . . 2 . . . . 1 Construction Impeded 4 | . . . . . . . . . . . . . . . . . 2 . . . 2 Haulers Reinforced . | . . . . . . . . . . . . . . . . . . . . . . Active Scanning Responses . | . . . . . . . . . . . . . . . . . . . . . . Cargo Convoy Interrupts . | . . . . . . . . . . . . . . . . . . . . . . Stealth | -11 -10 -10 -10 -9 -8 -8 -8 -8 -7 -7 -7 -7 -6 -6 -6 -6 -6 -6 -5 -5 -5 --------- Run | Yrd Mat Min Exi Min Mat Gar Mat Gar Fac Low Low Dat Pro Fac Gar Fac Ext Cet Fac Gar Fac Distress Signals 10 | . 1 . . . 1 . . 1 . . . . . . . 1 3 2 . . 1 Communications Jammed 1 | . . . . . . . . . . . . . . . . . . . . . 1 Distress Signals 1 | . . . . . . . . . . . . . . . . . . . . . 1 Times Spotted 356 | . 16 . . 4 25 35 14 37 5 7 . . 4 . 52 15 31 10 4 68 29 Peak Tracking Total 15 | . 4 . . 4 6 7 5 4 2 3 . . 3 . 10 3 5 5 4 15 4 Tactical Retreats 13 | . 2 . . . . . . 1 . . . . . . 4 . 2 . . 2 2 Traps | -11 -10 -10 -10 -9 -8 -8 -8 -8 -7 -7 -7 -7 -6 -6 -6 -6 -6 -6 -5 -5 -5 ------- Run | Yrd Mat Min Exi Min Mat Gar Mat Gar Fac Low Low Dat Pro Fac Gar Fac Ext Cet Fac Gar Fac Traps Triggered 36 | . 1 . . . . 7 1 14 . . . . . . 4 3 . . . 1 5 Indirectly . | . . . . . . . . . . . . . . . . . . . . . . Trap Hack Attempts 1 | . . . . . . . . . . . . . . . . 1 . . . . . Triggered . | . . . . . . . . . . . . . . . . . . . . . . Disarmed . | . . . . . . . . . . . . . . . . . . . . . . Reprogrammed . | . . . . . . . . . . . . . . . . . . . . . . Reused 2 | . . . . . . 2 . . . . . . . . . . . . . . . Traps Extracted . | . . . . . . . . . . . . . . . . . . . . . . Installed 8 | . . . . . . 8 . . . . . . . . . . . . . . . Triggered 2 | . . . . . . 2 . . . . . . . . . . . . . . . Most Traps Carried 4 | . . . . . . 4 . . . . . . . . . . . . . . . Machines | -11 -10 -10 -10 -9 -8 -8 -8 -8 -7 -7 -7 -7 -6 -6 -6 -6 -6 -6 -5 -5 -5 ---------- Run | Yrd Mat Min Exi Min Mat Gar Mat Gar Fac Low Low Dat Pro Fac Gar Fac Ext Cet Fac Gar Fac Machines Disabled 40 | . 3 . . . 2 7 . 4 8 1 . . . . 6 3 3 . . 1 2 Max in Single Turn 8 | . 2 . . . 1 1 . 2 8 1 . . . . 1 1 1 . . 1 1 Garrison Access 1 | . . . . . . . . . . . . . . . . 1 . . . . . Garrison Relay 9 | . . . . . . 2 . 4 . . . . . . 3 . . . . . . Phase Generator 1 | . . . . . . . . 1 . . . . . . . . . . . . . Energy Cycler 1 | . . . . . . . . . . . . . . . . . 1 . . . . Machines Repaired . | . . . . . . . . . . . . . . . . . . . . . . Machines Dismantled . | . . . . . . . . . . . . . . . . . . . . . . Machines Sabotaged . | . . . . . . . . . . . . . . . . . . . . . . Overloaded Fab Kills . | . . . . . . . . . . . . . . . . . . . . . . Hacking | -11 -10 -10 -10 -9 -8 -8 -8 -8 -7 -7 -7 -7 -6 -6 -6 -6 -6 -6 -5 -5 -5 --------- Run | Yrd Mat Min Exi Min Mat Gar Mat Gar Fac Low Low Dat Pro Fac Gar Fac Ext Cet Fac Gar Fac Machines Accessed 29 | . 3 . . 1 1 3 2 3 . 1 . 4 . 1 2 2 . 2 1 . 3 Terminals 18 | . 3 . . . . 3 1 3 . 1 . . . . 2 2 . 2 . . 1 Fabricators 1 | . . . . . . . . . . . . . . . . . . . . . 1 Repair Stations 1 | . . . . . . . . . . . . . . . . . . . . . 1 Recycling Units . | . . . . . . . . . . . . . . . . . . . . . . Scanalyzers . | . . . . . . . . . . . . . . . . . . . . . . Garrison Access 4 | . . . . . 1 . 1 . . . . . . 1 . . . . 1 . . Total Hacks 68 | . 5 . . 1 1 6 3 3 . 4 . 26 . 1 4 3 . 5 1 . 5 Successful 46 | . 1 . . 1 1 2 2 2 . 4 . 26 . 1 1 1 . 1 1 . 2 Failed 21 | . 3 . . . . 4 1 1 . . . . . . 3 2 . 4 . . 3 Catastrophic 7 | . 1 . . . . 2 . 1 . . . . . . 2 1 . . . . . Database Lockouts 1 | . 1 . . . . . . . . . . . . . . . . . . . . Manual 15 | . 6 . . . . . 2 . . . . . . . . 3 . 1 . . 3 Terminals 33 | . 5 . . . . 6 2 3 . 4 . . . . 4 3 . 5 . . 1 Fabricators 2 | . . . . . . . . . . . . . . . . . . . . . 2 Repair Stations 2 | . . . . . . . . . . . . . . . . . . . . . 2 Recycling Units . | . . . . . . . . . . . . . . . . . . . . . . Scanalyzers . | . . . . . . . . . . . . . . . . . . . . . . Garrison Access 4 | . . . . . 1 . 1 . . . . . . 1 . . . . 1 . . Terminal Hacks 40 | . 1 . . 1 . 2 1 2 . 4 . 26 . . 1 1 . 1 . . . Record 14 | . . . . . . . . . . 4 . 9 . . . . . 1 . . . Part Schematic 10 | . . . . . . . . . . . . 10 . . . . . . . . . Robot Schematic 4 | . . . . . . . . . . . . 4 . . . . . . . . . Robot Analysis 1 | . 1 . . . . . . . . . . . . . . . . . . . . Prototype ID Bank 3 | . . . . . . . . . . . . 3 . . . . . . . . . Open Door 3 | . . . . 1 . 1 . 1 . . . . . . . . . . . . . Branch Access Points 1 | . . . . . . . . . . . . . . . . 1 . . . . . Emergency Access Points 2 | . . . . . . . . 1 . . . . . . 1 . . . . . . Unreport Threat 1 | . . . . . . . 1 . . . . . . . . . . . . . . Garrison Registry 1 | . . . . . . 1 . . . . . . . . . . . . . . . Fabricator Hacks 2 | . . . . . . . . . . . . . . . . . . . . . 2 Load Schematic 1 | . . . . . . . . . . . . . . . . . . . . . 1 Build 1 | . . . . . . . . . . . . . . . . . . . . . 1 Repair Station Hacks . | . . . . . . . . . . . . . . . . . . . . . . Recycling Unit Hacks . | . . . . . . . . . . . . . . . . . . . . . . Scanalyzer . | . . . . . . . . . . . . . . . . . . . . . . Garrison Access Hacks 4 | . . . . . 1 . 1 . . . . . . 1 . . . . 1 . . Unlock Access 4 | . . . . . 1 . 1 . . . . . . 1 . . . . 1 . . Unauthorized Hacks . | . . . . . . . . . . . . . . . . . . . . . . Terminals . | . . . . . . . . . . . . . . . . . . . . . . Fabricators . | . . . . . . . . . . . . . . . . . . . . . . Repair Stations . | . . . . . . . . . . . . . . . . . . . . . . Recycling Units . | . . . . . . . . . . . . . . . . . . . . . . Scanalyzers . | . . . . . . . . . . . . . . . . . . . . . . Garrison Access . | . . . . . . . . . . . . . . . . . . . . . . Data Cores Recovered . | . . . . . . . . . . . . . . . . . . . . . . Used . | . . . . . . . . . . . . . . . . . . . . . . Hacking Detections 16 | . 2 . . . . 2 1 1 . 1 . . . . 2 1 . 2 1 . 3 Full Trace Events 5 | . . . . . . 1 1 . . 1 . . . . 1 . . . . . 1 Feedback Events . | . . . . . . . . . . . . . . . . . . . . . . Feedback Blocked . | . . . . . . . . . . . . . . . . . . . . . . Robot Schematics Acquired 4 | . . . . . . . . . . . . 4 . . . . . . . . . Robots Built . | . . . . . . . . . . . . . . . . . . . . . . Authchips . | . . . . . . . . . . . . . . . . . . . . . . Time . | . . . . . . . . . . . . . . . . . . . . . . Total Robot Build Rating . | . . . . . . . . . . . . . . . . . . . . . . Part Schematics Acquired 10 | . . . . . . . . . . . . 10 . . . . . . . . . Parts Built 1 | . . . . . . . . . . . . . . . . . . . . . 1 Authchips . | . . . . . . . . . . . . . . . . . . . . . . Time 84 | . . . . . . . . . . . . . . . . . . . . . 84 Total Part Build Rating 6 | . . . . . . . . . . . . . . . . . . . . . 6 Parts Repaired . | . . . . . . . . . . . . . . . . . . . . . . Time . | . . . . . . . . . . . . . . . . . . . . . . Parts Recycled . | . . . . . . . . . . . . . . . . . . . . . . Recycled Matter . | . . . . . . . . . . . . . . . . . . . . . . Retrieved Matter . | . . . . . . . . . . . . . . . . . . . . . . Retrieved Components . | . . . . . . . . . . . . . . . . . . . . . . Parts Scanalyzed . | . . . . . . . . . . . . . . . . . . . . . . Part Schematics Acquired . | . . . . . . . . . . . . . . . . . . . . . . Parts Damaged . | . . . . . . . . . . . . . . . . . . . . . . Bothacking | -11 -10 -10 -10 -9 -8 -8 -8 -8 -7 -7 -7 -7 -6 -6 -6 -6 -6 -6 -5 -5 -5 ------------ Run | Yrd Mat Min Exi Min Mat Gar Mat Gar Fac Low Low Dat Pro Fac Gar Fac Ext Cet Fac Gar Fac Used RIF Installer 6 | . . . . . . 1 . 1 . . . . . . 2 . . . . 2 . Signal Jammer 1 | . . . . . . . . 1 . . . . . . . . . . . . . Watcher Feeds 1 | . . . . . . . . . . . . . . . . . . . . 1 . Program Shield 1 | . . . . . . . . . . . . . . . 1 . . . . . . Autooverride 1 | . . . . . . . . . . . . . . . 1 . . . . . . Autoassimilate 1 | . . . . . . . . . . . . . . . . . . . . 1 . Robots Hacked 24 | . . . . . . 1 . . 4 3 . . . . 5 2 5 . . . 4 Non-combat 7 | . . . . . . . . . 3 . . . . . . . . . . . 4 Combat 17 | . . . . . . 1 . . 1 3 . . . . 5 2 5 . . . . Autooverrided 7 | . . . . . . . . . . . . . . . 1 1 5 . . . . Robot Hacks Applied 20 | . . . . . . 1 . . 5 3 . . . . 5 2 . . . . 4 parse_system 2 | . . . . . . . . . 1 . . . . . 1 . . . . . . find_chute 1 | . . . . . . . . . 1 . . . . . . . . . . . . drop_inventory 2 | . . . . . . . . . 1 . . . . . . . . . . . 1 find_garrison 1 | . . . . . . . . . . . . . . . . 1 . . . . . amplify_resonance 3 | . . . . . . . . . . 1 . . . . . . . . . . 2 overwrite_iff 2 | . . . . . . . . . . 1 . . . . 1 . . . . . . formatsys_low 2 | . . . . . . . . . 1 . . . . . . . . . . . 1 formatsys_high 7 | . . . . . . 1 . . 1 1 . . . . 3 1 . . . . . Relay Couplers Released 40 | . . . . . . 10 . 15 . . . . . . 14 1 . . . . . Machine Destruction 36 | . . . . . . 6 . 15 . . . . . . 14 1 . . . . . Programmers 4 | . . . . . . 4 . . . . . . . . . . . . . . . Attached 14 | . . . . . . 1 . . 2 2 . . . . 8 . . . . . 1 Fabnet Peak Effective % . | . . . . . . . . . . . . . . . . . . . . . . Robots Rewired 35 | . . . . . . . 1 18 . . . . . . 5 . 11 . . . . Allies Hacked 4 | . . . . . . 1 . 2 . . . . . . 1 . . . . . . Hacks Repelled . | . . . . . . . . . . . . . . . . . . . . . . Allies | -11 -10 -10 -10 -9 -8 -8 -8 -8 -7 -7 -7 -7 -6 -6 -6 -6 -6 -6 -5 -5 -5 -------- Run | Yrd Mat Min Exi Min Mat Gar Mat Gar Fac Low Low Dat Pro Fac Gar Fac Ext Cet Fac Gar Fac Total Allies 65 | . . . . 5 . 3 1 18 2 2 . . 1 . 14 2 16 . . . 1 Largest Group 9 | . . . . 5 5 2 1 6 1 2 1 . 1 1 5 4 9 1 1 1 1 Highest-Rated Group 265 | . . . . 81 81 51 15 138 23 37 20 . 96 96 250 150 265 39 29 29 23 Highest-Rated Ally 96 | . . . . 31 31 31 15 25 23 23 20 . 96 96 96 47 47 39 29 29 23 Total Orders 3 | . . . . . . . . . 1 1 . . . . . . . . . . 1 AID 3 | . . . . . . . . . 1 1 . . . . . . . . . . 1 Ally Attacks 432 | . . . . . 76 9 7 106 1 2 . . 1 2 58 14 115 10 1 5 25 Total Damage 8201 | . . . . . 841 391 129 1960 17 30 . . 47 50 1641 390 1960 182 33 101 429 Kills 84 | . . . . . 13 3 1 20 . 1 . . 1 1 18 1 17 3 . 2 3 Allies Corrupted 2 | . . . . . . . . . . . . . . . . . 1 . . . 1 Allies Melted 1 | . . . . . . . . . . . . . . . . . 1 . . . . Intel | -11 -10 -10 -10 -9 -8 -8 -8 -8 -7 -7 -7 -7 -6 -6 -6 -6 -6 -6 -5 -5 -5 ------- Run | Yrd Mat Min Exi Min Mat Gar Mat Gar Fac Low Low Dat Pro Fac Gar Fac Ext Cet Fac Gar Fac Robot Analysis Total 1 | . 1 . . . . . . . . . . . . . . . . . . . . Derelict Logs Recovered 4 | . . . . 3 . . . . . 1 . . . . . . . . . . . Drone Launches 2 | . . . . . . . . . . . . . . . . . . . . . 2 Drone Recoveries . | . . . . . . . . . . . . . . . . . . . . . . Exploration | -11 -10 -10 -10 -9 -8 -8 -8 -8 -7 -7 -7 -7 -6 -6 -6 -6 -6 -6 -5 -5 -5 ------------- Run | Yrd Mat Min Exi Min Mat Gar Mat Gar Fac Low Low Dat Pro Fac Gar Fac Ext Cet Fac Gar Fac Turns Passed 21426 | 6 959 731 257 977 863 2243 542 2210 415 1216 948 267 1246 501 2485 1274 1042 496 119 966 1663 Spaces Moved 8579 | 6 477 352 129 467 445 1129 249 828 187 323 239 77 266 122 986 589 546 190 66 383 523 Core 1 | . . . . . . . . . . . . . . . . 1 . . . . . Treads 1207 | . . . . . . . . . . . . . . . . 71 . 164 66 383 523 Legs 1323 | 6 121 . . . . . . . . 2 . . . 112 986 96 . . . . . Wheels 5247 | . 356 352 129 467 445 1129 249 828 187 112 . . . . . 421 546 26 . . . Hover 801 | . . . . . . . . . . 209 239 77 266 10 . . . . . . . Flight . | . . . . . . . . . . . . . . . . . . . . . . Fastest Speed 116 | 120 120 200 200 200 140 135 155 155 116 150 392 312 392 400 186 116 130 130 160 160 240 Average Speed 208 | 120 182 200 200 200 155 163 155 208 165 340 392 347 442 406 196 176 136 224 160 176 240 Slowest Speed 1350 | 120 200 200 200 200 230 215 155 245 230 1040 392 392 476 476 400 1350 145 240 160 240 240 Overloaded Moves . | . . . . . . . . . . . . . . . . . . . . . . Propulsion Burnouts . | . . . . . . . . . . . . . . . . . . . . . . Robots Hopped 3 | . . . . . . . . . . . . . . . 3 . . . . . . Cave-ins Triggered . | . . . . . . . . . . . . . . . . . . . . . . Exploration Rate (%) 50 | 2 81 70 48 97 45 84 26 88 7 56 47 68 55 3 91 14 76 72 3 47 26 Regions Visited 21 Branch Regions 9 Pre-discovered Areas 2 | . . . . 1 . . . . . . . 1 . . . . . . . . . Known Exits Taken 10 | . . . . . 1 . 1 . 1 1 1 1 1 1 . 1 . . 1 . . Unknown Exits Taken 7 | 1 1 1 1 1 . . . . . . . . . . . . 1 1 . . . Scrap Searched 13 | . . . . 1 . . . . . 8 3 . 1 . . . . . . . . Spaces Dug 20 | . . . . . . . . . . . . . . . . 6 . . . 14 . Terrain Destroyed 463 | . 28 . . . 5 12 . 68 78 5 . . 4 . 36 58 26 4 . 103 36 Melee . | . . . . . . . . . . . . . . . . . . . . . . Projectile 121 | . . . . . 2 3 . . 2 5 . . 4 . 4 45 5 4 . 11 36 AOE 342 | . 28 . . . 3 9 . 68 76 . . . . . 32 13 21 . . 92 . Terrain Rammed . | . . . . . . . . . . . . . . . . . . . . . . Walls Destroyed . | . . . . . . . . . . . . . . . . . . . . . . Machines Disabled . | . . . . . . . . . . . . . . . . . . . . . . Actions | -11 -10 -10 -10 -9 -8 -8 -8 -8 -7 -7 -7 -7 -6 -6 -6 -6 -6 -6 -5 -5 -5 --------- Run | Yrd Mat Min Exi Min Mat Gar Mat Gar Fac Low Low Dat Pro Fac Gar Fac Ext Cet Fac Gar Fac Total 11039 | 5 527 379 129 504 542 1392 353 1228 266 406 245 80 305 127 1394 740 773 238 73 525 808 Wait 778 | . 7 26 . 23 6 47 33 102 34 42 2 . 3 . 180 48 33 5 . 4 183 Move 8556 | 5 476 351 128 466 445 1128 249 827 186 322 238 76 265 122 979 588 545 189 66 382 523 Hop 3 | . . . . . . . . . . . . . . . 3 . . . . . . Pick Up 129 | . 5 1 1 8 18 27 7 5 3 . 1 . . 1 15 4 10 10 1 4 8 Fast Attach 84 | . 7 . . . 7 4 3 3 4 6 . . . 1 22 10 2 3 . 6 6 Attach 92 | . 3 . . 1 4 16 4 5 4 1 . 1 5 1 8 12 6 2 2 10 7 Detach 12 | . . . . . . . 1 . . 1 . 1 2 . 5 1 1 . . . . Swap 51 | . . . . . 10 4 2 5 3 4 . . . . 10 1 2 . . 8 2 Drop 99 | . 6 . . 2 14 17 7 4 3 5 . 2 . 2 10 5 2 11 . 4 5 Fire 783 | . 23 . . 4 38 98 39 64 29 25 4 . 30 . 102 66 58 18 4 107 74 Melee 45 | . . . . . . 3 . 20 . . . . . . 19 3 . . . . . Ram 2 | . . 1 . . . . . . . . . . . . . 1 . . . . . Kick . | . . . . . . . . . . . . . . . . . . . . . . Crush . | . . . . . . . . . . . . . . . . . . . . . . Escape Stasis 150 | . . . . . . 40 . 95 . . . . . . 15 . . . . . . Rewire 246 | . . . . . . . 8 98 . . . . . . 26 . 114 . . . . Trap 9 | . . . . . . 8 . . . . . . . . . 1 . . . . . Miscellaneous . | . . . . . . . . . . . . . . . . . . . . . . Route ------- -11/Scrapyard -10/Materials (discovered 3 exits: [*Mat x2] / [*Min]) -10/Mines (discovered 3 exits: [*Mat x2] / [*Exi]) -10/Exiles -9/Mines (discovered 2 exits: *Mat x2) -8/Materials (discovered 2 exits: [*Fac] / Gar) -8/Garrison (discovered 3 exits: *Mat x3) -8/Materials -8/Garrison (discovered 3 exits: [*Fac x3]) -7/Factory -7/Lower Caves -7/Lower Caves -7/Data Miner -6/Proximity Caves -6/Factory -6/Garrison (discovered 3 exits: *Fac x3) -6/Factory (discovered 4 exits: Low x2 / *Ext x2) -6/Extension (discovered 3 exits: *Fac x2 / *Cet) -6/Cetus (discovered 2 exits: *Fac / [*Arc]) -5/Factory (discovered 2 exits: [*Fac] / Gar) -5/Garrison -5/Factory History --------- Turn | Location | Event 1 | -11/Scrapyard | Discovered new exit (range 3) 7 | -11/Scrapyard | Entered Materials 322 | -10/Materials | Central database locked down 329 | -10/Materials | Build established: Mutant 330 | -10/Materials | Discovered new exit (range 15) 644 | -10/Materials | Discovered new exit (range 11) 841 | -10/Materials | Discovered new exit (range 16) 966 | -10/Materials | Entered Mines 1012 | -10/Mines | Discovered new exit (range 8) 1382 | -10/Mines | Discovered new exit (range 8) 1491 | -10/Mines | Assembled infested the area 1672 | -10/Mines | A weapon hastily lodged in a ceiling crevice suddenly fell to the ground 1687 | -10/Mines | Deemed a non-threat by the Exiles lab entrance 1689 | -10/Mines | Discovered new exit (range 5) 1697 | -10/Mines | Entered Exiles 1748 | -10/Exiles | Met 8R-AWN 1782 | -10/Exiles | Met EX-HEX 1860 | -10/Exiles | Met EX-DEC 1926 | -10/Exiles | Discovered new exit (range 14) 1954 | -10/Exiles | Entered Mines 1955 | -9/Mines | Met a Derelict bent on vengeance 2068 | -9/Mines | Discovered new exit (range 15) 2108 | -9/Mines | Learned Materials interactive machine intel 2148 | -9/Mines | Learned Materials terminal intel 2186 | -9/Mines | Learned location of Storage (-7) 2444 | -9/Mines | Met a Derelict shopkeep closing up shop 2753 | -9/Mines | Discovered new exit (range 5) 2775 | -9/Mines | Assisted by bots powering up and referring to "LRC-V3" 2931 | -9/Mines | Entered Materials 2931 | -8/Materials | Accompanied by 5 allies 2931 | -8/Materials | Evolved 4 slots: Power x1, Propulsion x1, Utility x2 2932 | -8/Materials | Loaded intel: 19 interactive machine locations 2933 | -8/Materials | Loaded intel: 12 terminal locations 2941 | -8/Materials | Led the pair of lost Derelicts to an unsafe place 3223 | -8/Materials | Discovered new exit (range 12) 3794 | -8/Materials | Identified exit to Garrison 3794 | -8/Materials | Entered Garrison 3802 | -8/Garrison | Build established: Scavenger-Mutant 3836 | -8/Garrison | Triggered checkpoint 3881 | -8/Garrison | Lost 3 parts (1p2n) 4140 | -8/Garrison | Build established: Mutant 4199 | -8/Garrison | Triggered checkpoint 4202 | -8/Garrison | Triggered checkpoint 4254 | -8/Garrison | Destroyed 8 combat bots 4267 | -8/Garrison | Lost 5 parts (1p1n2u1w) 4386 | -8/Garrison | Discovered new exit (range 10) 4592 | -8/Garrison | Triggered checkpoint 4602 | -8/Garrison | Installed Relay Interface Framework 4646 | -8/Garrison | Garrison Relay disabled 4822 | -8/Garrison | Triggered checkpoint 4934 | -8/Garrison | Build established: Scavenger-Mutant 5246 | -8/Garrison | Triggered checkpoint 5302 | -8/Garrison | Discovered new exit (range 13) 5313 | -8/Garrison | Rescued a captive Derelict 5315 | -8/Garrison | Rescued a captive Derelict 5716 | -8/Garrison | Garrison Relay disabled 5761 | -8/Garrison | Discovered new exit (range 11) 5778 | -8/Garrison | Discovered new exit (range 73) 5778 | -8/Garrison | Discovered new exit (range 79) 5778 | -8/Garrison | Discovered new exit (range 7) 5830 | -8/Garrison | Core integrity fell below 50% 5921 | -8/Garrison | Build established: Bothacker-Mutant 6037 | -8/Garrison | Entered Materials 6037 | -8/Materials | Accompanied by 1 ally 6579 | -8/Materials | Identified exit to Garrison 6579 | -8/Materials | Entered Garrison 6944 | -8/Garrison | P-60 Hacker assimilated allied Commando 3a 6954 | -8/Garrison | Garrison Relay disabled 6955 | -8/Garrison | Garrison Relay disabled 7055 | -8/Garrison | Triggered checkpoint 7099 | -8/Garrison | Triggered checkpoint 7285 | -8/Garrison | Lost 3 parts (2p1n) 7465 | -8/Garrison | Lost 5 allies 7486 | -8/Garrison | Expanded RIF knowledge: Signal Jamming 7610 | -8/Garrison | Discovered new exit (range 7) 7613 | -8/Garrison | Triggered checkpoint 7633 | -8/Garrison | Core integrity fell below 20% 7701 | -8/Garrison | Garrison Relay disabled 7791 | -8/Garrison | Triggered checkpoint 7823 | -8/Garrison | Triggered checkpoint 7911 | -8/Garrison | Discovered new exit (range 13) 7923 | -8/Garrison | Phase Generator disabled 8033 | -8/Garrison | Triggered checkpoint 8086 | -8/Garrison | Lost 3 allies 8147 | -8/Garrison | Triggered checkpoint 8357 | -8/Garrison | Triggered checkpoint 8570 | -8/Garrison | Triggered checkpoint 8756 | -8/Garrison | Discovered new exit (range 13) 8789 | -8/Garrison | Entered Factory 8789 | -7/Factory | Evolved 2 slots: Utility x2 9083 | -7/Factory | Discovered new exit (range 15) 9121 | -7/Factory | P-60 Hacker assimilated allied Trooper 4a 9197 | -7/Factory | Identified exit to Lower Caves 9204 | -7/Factory | Entered Lower Caves 9204 | -7/Lower Caves | Accompanied by 1 ally 9365 | -7/Lower Caves | Learned Factory stockpile data 9515 | -7/Lower Caves | Attracted the attention of an 0b10 base 9564 | -7/Lower Caves | Lost 5 parts (1p1n2u1w) 9612 | -7/Lower Caves | Learned 6 Proximity Caves zone layouts 9612 | -7/Lower Caves | Learned Armory stockpile data 10363 | -7/Lower Caves | Discovered new exit (range 12) 10410 | -7/Lower Caves | Identified exit to Lower Caves 10420 | -7/Lower Caves | Entered another Lower Caves area 10420 | -7/Lower Caves | Accompanied by 1 ally 11258 | -7/Lower Caves | Discovered new exit (range 10) 11306 | -7/Lower Caves | Identified exit to Data Miner 11368 | -7/Lower Caves | Entered Data Miner 11369 | -7/Data Miner | Discovered new exit (range 6) 11429 | -7/Data Miner | Met Data Miner 11482 | -7/Data Miner | Learned location of Section 7 (-3) 11482 | -7/Data Miner | Acquired the access code to Warlord's prototype stash 11548 | -7/Data Miner | Received God Mode back door access code from Data Miner 11631 | -7/Data Miner | Identified exit to Proximity Caves 11635 | -7/Data Miner | Entered Proximity Caves 12064 | -6/Proximity Caves | Ambushed by research squad 12099 | -6/Proximity Caves | Core integrity fell below 50% 12127 | -6/Proximity Caves | Escorted by Enhanced Grunt 12152 | -6/Proximity Caves | Lost 5 parts (1n2u2w) 12810 | -6/Proximity Caves | Discovered new exit (range 13) 12862 | -6/Proximity Caves | Identified exit to Factory 12881 | -6/Proximity Caves | Entered Factory 12881 | -6/Factory | Accompanied by 1 ally 12881 | -6/Factory | Evolved 2 slots: Utility x2 13382 | -6/Factory | Identified exit to Garrison 13382 | -6/Factory | Entered Garrison 13382 | -6/Garrison | Accompanied by 1 ally 13452 | -6/Garrison | Triggered checkpoint 13587 | -6/Garrison | Found Prototype Device 13587 | -6/Garrison | Identified Exp. Thermal Shield 13890 | -6/Garrison | Triggered checkpoint 13996 | -6/Garrison | Expanded RIF knowledge: Program Shield 14031 | -6/Garrison | Triggered checkpoint 14100 | -6/Garrison | Triggered checkpoint 14129 | -6/Garrison | Triggered checkpoint 14160 | -6/Garrison | Triggered checkpoint 14262 | -6/Garrison | Triggered checkpoint 14331 | -6/Garrison | Discovered new exit (range 13) 14363 | -6/Garrison | Build established: Scavenger-Mutant 14391 | -6/Garrison | Garrison Relay disabled 14464 | -6/Garrison | Rescued a captive Derelict 14474 | -6/Garrison | Rescued a captive Derelict 14692 | -6/Garrison | Triggered checkpoint 14696 | -6/Garrison | Build established: Bothacker-Mutant 14742 | -6/Garrison | Garrison Relay disabled 14752 | -6/Garrison | Found embedded Infiltrators 14810 | -6/Garrison | Discovered new exit (range 10) 14917 | -6/Garrison | Lost 3 allies 15132 | -6/Garrison | Discovered new exit (range 14) 15234 | -6/Garrison | Triggered checkpoint 15332 | -6/Garrison | Expanded RIF knowledge: Autooverride 15354 | -6/Garrison | Lost 3 allies 15377 | -6/Garrison | Garrison Relay disabled 15398 | -6/Garrison | Triggered checkpoint 15614 | -6/Garrison | Build established: Botlord-Mutant 15867 | -6/Garrison | Entered Factory 15867 | -6/Factory | Accompanied by 3 allies 16121 | -6/Factory | Lost 5 parts (2p1n1u1w) 16183 | -6/Factory | Incoming assault squad redirected 16212 | -6/Factory | Lost 4 allies 16281 | -6/Factory | System corruption reached 10% 16369 | -6/Factory | Lost 3 parts (2n1u) 16682 | -6/Factory | Identified exit to Lower Caves 16682 | -6/Factory | Identified exit to Extension 16746 | -6/Factory | Build established: Scavenger-Mutant 16917 | -6/Factory | First assault squad dispatched 16936 | -6/Factory | Incoming assault squad redirected 17141 | -6/Factory | Entered Extension 17336 | -6/Extension | Energy Cycler disabled 17336 | -6/Extension | Rescued a captive Derelict 17336 | -6/Extension | Rescued a captive Derelict 17336 | -6/Extension | Rescued a captive Derelict 17337 | -6/Extension | Rescued a captive Derelict 17337 | -6/Extension | Rescued a captive Derelict 17341 | -6/Extension | Rescued a captive Derelict 17348 | -6/Extension | Rescued a captive Derelict 17504 | -6/Extension | Core integrity fell below 50% 17557 | -6/Extension | Lost 3 allies 17638 | -6/Extension | Spotted B-75 Beast 17647 | -6/Extension | Destroyed B-75 Beast 17658 | -6/Extension | Discovered new exit (range 19) 17658 | -6/Extension | Spotted B-75 Beast 17711 | -6/Extension | Allies destroyed B-75 Beast 17741 | -6/Extension | Disrupted transfer network 17744 | -6/Extension | Extracted ID and sensor layout for unrecognized location from A7's data core 17753 | -6/Extension | Lost 6 allies 17897 | -6/Extension | Discovered new exit (range 20) 17897 | -6/Extension | Discovered new exit (range 20) 18183 | -6/Extension | Entered Cetus 18183 | -6/Cetus | Accompanied by 1 ally 18200 | -6/Cetus | Spotted Cetus Guard 18200 | -6/Cetus | Spotted Cetus Guard 18200 | -6/Cetus | Spotted Cetus Guard 18200 | -6/Cetus | Spotted Cetus Guard 18202 | -6/Cetus | Destroyed Cetus Guard 18204 | -6/Cetus | Destroyed Cetus Guard 18210 | -6/Cetus | Allies destroyed Cetus Guard 18221 | -6/Cetus | Destroyed Cetus Guard 18504 | -6/Cetus | Discovered new exit (range 20) 18554 | -6/Cetus | Spotted Cetus Guard 18554 | -6/Cetus | Spotted Cetus Guard 18556 | -6/Cetus | Spotted Cetus Guard 18559 | -6/Cetus | Spotted Cetus Guard 18565 | -6/Cetus | Destroyed Cetus Guard 18569 | -6/Cetus | Allies destroyed Cetus Guard 18573 | -6/Cetus | Destroyed Cetus Guard 18579 | -6/Cetus | Allies destroyed Cetus Guard 18585 | -6/Cetus | Discovered new exit (range 20) 18606 | -6/Cetus | Met Revision 17 18679 | -6/Cetus | Entered Factory 18679 | -5/Factory | Accompanied by 1 ally 18679 | -5/Factory | Evolved 2 slots: Propulsion x1, Utility x1 18782 | -5/Factory | Discovered new exit (range 20) 18798 | -5/Factory | Identified exit to Garrison 18798 | -5/Factory | Entered Garrison 18798 | -5/Garrison | Accompanied by 1 ally 18860 | -5/Garrison | Triggered checkpoint 18868 | -5/Garrison | Expanded RIF knowledge: Autoassimilate 19009 | -5/Garrison | Spotted B-75 Beast 19034 | -5/Garrison | Assembled breached garrison interior 19077 | -5/Garrison | Destroyed B-75 Beast 19297 | -5/Garrison | Destroyed 10 combat bots 19347 | -5/Garrison | Destroyed 10 combat bots 19489 | -5/Garrison | System corruption reached 10% 19493 | -5/Garrison | Destroyed 17 combat bots 19525 | -5/Garrison | Lost 10 parts (1p2n5u2w) 19548 | -5/Garrison | Destroyed 7 combat bots 19559 | -5/Garrison | Expanded RIF knowledge: Watcher Feeds 19595 | -5/Garrison | Core integrity fell below 50% 19695 | -5/Garrison | Discovered new exit (range 17) 19764 | -5/Garrison | Entered Factory 20088 | -5/Factory | Incoming investigation squad redirected 20147 | -5/Factory | Fabricated Combat Drone Bay (x1) 20573 | -5/Factory | Core integrity fell below 20% 20866 | -5/Factory | System corruption reached 30% 20927 | -5/Factory | Build established: Bothacker-Mutant 21427 | -5/Factory | Destroyed by P-70 Sage with Tesla Rifle Last Messages --------------- 21401_ Centrium Heavy Treads destroyed. 21402_ Slug penetrates Wall. 21402_ Slug penetrates R-10 Processor. 21402_ P-70 Sage destroyed. 21403_ R-10 Processor collects Wheel. 21405_ U-05 Engineer builds a Wall. 21405_ Slug penetrates Wall. 21405_ Slug penetrates Fabricator. 21407_ R-10 Processor collects Mic. Fission Core. 21408_ Slug penetrates R-10 Processor. 21408_ R-10 Processor destroyed. 21408_ R-10 Processor knocked back. 21409_ U-05 Engineer builds a Wall. 21411_ Slug penetrates Wall. 21414_ U-05 Engineer builds a Wall. 21417_ Slug penetrates P-70 Sage. 21417_ Destroyed Antigrav System. 21417_ P-70 Sage knocked back. 21418_ System corrupted: Component data lost. 21418_ U-05 Engineer builds a Wall. Map ----- +----------------------------------------------------+ | #########+#### #???????# #???????????????? | | #???????# #???????????????? | | #???????# #???????????????? | | ######### +???????????????? | | # # #???????????????? | | # = # #???????????????? | | ############## # # #???????????????? | | ?????????????# # ] # #???????????????? | | ?????????????# # # #???????????????? | | ?????????????# # # #???????????????? | | ?????????????# # # #???????????????? | | ?????######??# #!! # #???????????????? | | ????? ??# #!! # #???????????????? | | ?????? ?# #!! # #???????????????? | | ??????? ?# # # #???????????????? | | ?????? """"" # # # #???????????????? | | ???? """"" # + # #???????????????? | | ???? """ " # # #???????????????? | | ?? ; # [ # #???????????????? | | # ! ; # #? #???????????????? | | # # # # #???????????????? | | # "" "" #u % !######### #???????????????? | | # ""F"" # !%p%= #???????????????? | | # """??# *%=! #???????????????? | | ##?#?#####???# % * % #???????????????? | | ????????????## @ #???????????????? | | ???????????# # #???????????????? | | ??????????# #################+####???????????????? | | ??????????##?????????????????????????????????????? | | ?????????????????????????????????????????????????? | | ?????????????????????????????????????????????????? | | ?????????????????????????????????????????????????? | | ?????????????????????????????????????????????????? | | ?????????????????????????????????????????????????? | | ?????????????????????????????????????????????????? | | ?????????????????????????????????????????????????? | | ?????????????????????????????????????????????????? | | ?????????????????????????????????????????????????? | | ?????????????????????????????????????????????????? | | ?????????????????????????????????????????????????? | | ?????????????????????????????????????????????????? | | ?????????????????????????????????????????????????? | | ?????????????????????????????????????????????????? | | ?????????????????????????????????????????????????? | | ?????????????????????????????????????????????????? | | ?????????????????????????????????????????????????? | | ?????????????????????????????????????????????????? | | ?????????????????????????????????????????????????? | | ?????????????????????????????????????????????????? | | ?????????????????????????????????????????????????? | +----------------------------------------------------+ Best States ------------- Heat Dissipation 86 Coolant Potential 65 Energy Generation 31 Energy Capacity 800 Matter Stores 300 Matter Capacity 300 Sight Range 20 Terrain Scan Range 24 Terrain Scan Density 10 Armor Coverage 450 Resistance: KI 20 Resistance: TH 30 Resistance: EM 15 Weapon Cycling 20 Evasion (%) 55 Core Analysis 6 Recoil Reduction 4 Particle Charging 25 Relay Coupler Types 3 Relay Coupler Value 104 Item Schematics ----------------- Hyp. Gauss Rifle | -7/Data Miner | Free Wave Gun | -7/Data Miner | Free Adv. Trap Scanner | -7/Data Miner | Free Adv. System Shield | -7/Data Miner | Free Antigrav System | -7/Data Miner | Free Antimatter Cannon | -7/Data Miner | Free Gravity Neutralizer | -7/Data Miner | Free Cld. Aerolev Unit | -7/Data Miner | Free Lgt. Regenerative Plating | -7/Data Miner | Free Combat Drone Bay | -7/Data Miner | Free Robot Schematics ------------------ S-27 Virus | -7/Data Miner | Free G-50 Soldier | -7/Data Miner | Free C-17 Slicer | -7/Data Miner | Free O-24 Administrator | -7/Data Miner | Free Fabricated ------------ Combat Drone Bay | x1 | -5/Factory Alien Tech Used ----------------- None Achievements -------------- None Challenges ------------ None Game ------ Seed ShadeBarrageRipteeth Manual? 0 Play Time 01:49:26 Cumulative 168.6 hours Start 2024.11.24 @ 13:28:10 End 2024.12.08 @ 20:25:33 Sessions 5 Manual Loads 0 Difficulty Rogue Special Mode None Game No. 270 Rogue 269 Adventurer 1 Explorer 0 Win Type - Total 2 Types 2/0/0/0/0/0/0/0/0 Lore% 75 Gallery% 73 Achievement% 55 Wizard Run 0 Options --------- Layout 1 ASCII 0 Keyboard 0 Movement Mouse Keybinds 0 Fullscreen 2 Font 20/SmallcapsGlow Map View 54x42 Zoom Use 0% Tactical HUD 1 Map Filters NONE Filters NONE Steam 0 RUN: 3eb7e97d-6832-44f7-90d8-6afca8308ad8